Cogmind - Beta 15 @@@ ROGUE MODE // 2025.07.02 @ 05:14:43 Player: Florist Result: Destroyed by H-71 Marshal with Heavy Mass Driver Performance ------------- Evolutions (5) 2500 Regions Visited (13) 2600 Robots Destroyed (179) 895 Value Destroyed (4542) 4542 Prototype IDs (10) 200 Alien Tech Used (0) 0 Bonus (3896) 3896 TOTAL SCORE: 14633 Bonus ------- High Alert Combat Kills 163 Follower Combat Kills 1590 Network Hubs Disabled 800 Registered with UFD 300 Met Optimus in HQ 500 Built Enhanced Grunts 300 A7 Reached Mainframe 300 Friendly Fire -57 Cogmind --------- Core Integrity 0/1000 Matter 28/300 Energy 74/100 System Corruption 38% Temperature Cool (2) Movement Flying (40) Location -5/Factory Parts ------- > --- POWER (1) -------- (None) > --- PROPULSION (6) --- Nuclear Pulse Array > --- UTILITY (8) ------ (None) > --- WEAPON (2) ------- (None) > --- INVENTORY (5) ---- Cooled Fission Core Advanced Cooling System Companion Sword Peak State ------------ > --- POWER ------------ Light Angular Momentum Engine > --- PROPULSION ------- VTOL Module VTOL Module VTOL Module VTOL Module Improved Cesium-ion Thruster Improved Cesium-ion Thruster > --- UTILITY ---------- Improved Cooling System Structural Scanner Machine Analyzer Enhanced Optical Array Advanced Sensor Array Advanced Signal Interpreter Improved Hacking Suite Improved System Shield > --- WEAPON ----------- Plasma Cutter Companion Sword > --- INVENTORY -------- Light Angular Momentum Engine VTOL Module Improved Sensor Array Rocket Launcher Long-range Missile Launcher [Rating: 65] Favorites ----------- Power Improved Ion Engine Engine Improved Ion Engine Power Core Light Fission Core Propulsion Improved Treads Treads Improved Treads Flight Unit VTOL Module Utility Medium Armor Plating Device Improved Sensor Array Storage High-capacity Storage Unit Processor Advanced Signal Interpreter Hackware Improved Hacking Suite Protection Medium Armor Plating Weapon Improved Assault Rifle Energy Gun Improved Medium Laser Energy Cannon Advanced Beam Cannon Ballistic Gun Improved Assault Rifle Launcher Long-range Missile Launcher Special Weapon Plasma Cutter Impact Weapon Heavy Hammer Slashing Weapon Companion Sword Build | -11 -10 -9 -9 -9 -9 -6 -6 -6 -6 -6 -5 -5 -5 ------- Run | Yrd Mat Mat Sto Rec Scr Fac Ext Cet Arc Hub Fac Was Fac Slots Evolved 10 | . . 2 . . . 6 . . . . 2 . . Power . | . . . . . . . . . . . . . . Propulsion 4 | . . 1 . . . 3 . . . . . . . Utility 6 | . . 1 . . . 3 . . . . 2 . . Weapon . | . . . . . . . . . . . . . . Parts Attached 113 | 6 5 30 21 . 9 15 9 . 2 1 1 . 14 Power 12 | 1 1 3 1 . 2 1 1 . . . . . 2 Engine 10 | 1 1 3 1 . 2 . 1 . . . . . 1 Core 2 | . . . . . . 1 . . . . . . 1 Reactor . | . . . . . . . . . . . . . . Propulsion 44 | 2 2 13 8 . 3 5 6 . . . . . 5 Treads 24 | 2 2 12 8 . . . . . . . . . . Leg . | . . . . . . . . . . . . . . Wheel . | . . . . . . . . . . . . . . Hover . | . . . . . . . . . . . . . . Flight 20 | . . 1 . . 3 5 6 . . . . . 5 Utility 35 | 1 2 6 5 . 1 9 . . 2 1 1 . 7 Device 12 | . 1 1 . . . 2 . . 1 1 1 . 5 Storage 5 | 1 1 1 1 . . 1 . . . . . . . Processor 6 | . . . . . 1 4 . . . . . . 1 Hackware 4 | . . . . . . 2 . . 1 . . . 1 Protection 8 | . . 4 4 . . . . . . . . . . Artifact . | . . . . . . . . . . . . . . Weapon 22 | 2 . 8 7 . 3 . 2 . . . . . . Energy Gun 1 | . . . 1 . . . . . . . . . . Energy Cannon 1 | . . . 1 . . . . . . . . . . Ballistic Gun 13 | 2 . 7 2 . 2 . . . . . . . . Ballistic Cannon . | . . . . . . . . . . . . . . Launcher 3 | . . 1 . . . . 2 . . . . . . Special Weapon 1 | . . . 1 . . . . . . . . . . Impact Weapon 2 | . . . 2 . . . . . . . . . . Slashing Weapon 1 | . . . . . 1 . . . . . . . . Piercing Weapon . | . . . . . . . . . . . . . . Special Melee Weapon . | . . . . . . . . . . . . . . Unidentified Prototypes 8 | . . 2 2 . 1 1 . . 1 . . . 1 Parts Lost 33 | . . 4 3 . . 1 3 1 . 1 . . 20 Power 3 | . . 1 1 . . . . . . . . . 1 Propulsion 12 | . . . . . . 1 3 . . 1 . . 7 Utility 15 | . . 3 2 . . . . 1 . . . . 9 Weapon 3 | . . . . . . . . . . . . . 3 Highest Loss Streak 5 | . . 2 1 . . 1 2 1 . 1 . . 5 To Critical Strikes . | . . . . . . . . . . . . . . Average Backups 12 | 4 7 12 15 20 18 5 4 5 5 5 5 5 3 Power . | . . . . . . . . 1 1 1 1 1 1 Propulsion 4 | 3 3 5 5 8 6 . . . . . . . . Utility 2 | . . 1 3 3 4 2 2 2 2 2 1 1 . Weapon 4 | . 2 4 5 8 6 2 1 1 2 2 2 2 1 Tool/Special . | . . . . . . . . . . . . . . Unused Backups 24 | . 5 6 3 . 2 4 . . . . . . 4 Power 2 | . . . . . . . . . . . . . 2 Propulsion 7 | . 5 2 . . . . . . . . . . . Utility 5 | . . . . . . 3 . . . . . . 2 Weapon 10 | . . 4 3 . 2 1 . . . . . . . Tool/Special . | . . . . . . . . . . . . . . Average Slot Usage (%) 92 | . 93 92 93 100 95 91 93 93 95 94 82 82 74 Engine 9 | . 14 10 10 11 10 5 5 6 6 6 5 5 4 Treads 23 | . 28 32 33 33 31 . . . . . . . . Flight 9 | . . . . . 1 38 36 40 40 34 29 29 26 Device 4 | . 7 4 . . . 8 13 6 6 6 9 11 11 Storage 8 | . 14 11 11 11 10 . . . . . . . . Processor 5 | . . . . . 3 19 20 20 20 20 17 17 12 Hackware 2 | . . . . . . 5 6 6 8 13 11 11 8 Protection 10 | . . 11 16 22 16 3 . . . . . . . Ballistic Gun 15 | . 28 21 20 22 20 . . . . . . . . Slashing Weapon 1 | . . . . . . 5 5 2 6 6 5 5 4 Peak Build Rating 65 | 6 7 19 23 23 31 61 64 58 63 59 60 59 65 Average Rating 28 | 5 6 15 18 23 24 52 59 53 55 57 58 59 50 On Entrance 36 | . 6 6 19 23 23 31 61 55 54 59 57 59 59 Naked Turns 17 | . . . . . 1 . . . . . . . 16 Heaviest Build 68 | 14 15 43 67 67 68 62 23 23 15 15 16 16 24 Greatest Support 69 | 40 40 63 69 69 69 69 31 28 28 28 24 24 39 Greatest Overweight (x) 4 | . . . . . 2 . 4 . . . . . 1 Average Overweight (x) . | . . . . . . . . . . . . . . Largest Inventory Capacity 30 | 8 30 15 20 20 20 20 5 5 5 5 5 5 5 Average Capacity 13 | 6 8 13 16 20 19 5 5 5 5 5 5 5 5 Most Carried 20 | 7 8 15 20 20 20 19 5 5 5 5 5 5 5 Average Carried 12 | 4 7 12 15 20 18 5 4 5 5 5 4 5 3 Final Capacity 20 | 8 8 15 20 20 20 5 5 5 5 5 5 5 5 Final Carried 20 | 7 8 15 20 20 19 5 5 5 5 5 5 5 3 Class Distribution -------------------- 42% | Mutant 24% | Commander-Mutant 10% | Scavenger-Scout 9% | Scout 6% | Scavenger-Mutant Dominant Class ---------------- Mutant | -10/Materials Mutant | -9/Materials Mutant | -9/Storage Mutant | -9/Recycling Commander-Mutant | -9/Scraptown Scout | -6/Factory Scavenger-Scout | -6/Extension Commander-Scout | -6/Cetus Scavenger-Scout | -6/Archives Scavenger-Scout | -6/Hub_04(d) Scavenger-Scout | -5/Factory Scavenger-Scout | -5/Waste Scavenger-Scout | -5/Factory Resources | -11 -10 -9 -9 -9 -9 -6 -6 -6 -6 -6 -5 -5 -5 ----------- Run | Yrd Mat Mat Sto Rec Scr Fac Ext Cet Arc Hub Fac Was Fac Matter Collected 4010 | 209 441 1168 1002 48 163 302 160 126 131 20 . . 240 Remotely . | . . . . . . . . . . . . . . Salvage Created 6212 | 96 639 1944 1563 291 . 432 281 28 201 256 . . 481 Parts 416 | 10 53 140 93 5 . 26 15 3 14 14 . . 43 Haulers Intercepted 19 | . 2 6 6 . . 3 . . . 1 . . 1 Recyclers Shooed 5 | . . . 1 3 . . 1 . . . . . . Parts Field Recycled . | . . . . . . . . . . . . . . Retrieved Matter . | . . . . . . . . . . . . . . Parts Self-Destructed . | . . . . . . . . . . . . . . Prevented . | . . . . . . . . . . . . . . Kills | -11 -10 -9 -9 -9 -9 -6 -6 -6 -6 -6 -5 -5 -5 ------- Run | Yrd Mat Mat Sto Rec Scr Fac Ext Cet Arc Hub Fac Was Fac Combat Hostiles Destroyed 96 | . 13 37 26 4 . . 5 . . 1 . . 10 Melee 6 | . . . . . . . 5 . . 1 . . . Guns 70 | . 13 34 19 4 . . . . . . . . . AOE 20 | . . 3 7 . . . . . . . . . 10 Classes Destroyed 14 | 1 7 4 1 . . . . . . . . . 1 Worker 14 | . 4 2 2 . . 3 . . . 1 . . 2 Builder 10 | . 1 1 . . . . 1 . . . . . 7 Tunneler 6 | 4 . 1 . . . . . . . . . . 1 Hauler 19 | . 2 6 6 . . 3 . . . 1 . . 1 Recycler 4 | . . 1 1 2 . . . . . . . . . Mechanic 2 | . . 1 1 . . . . . . . . . . Operator 10 | . 1 1 1 . . 1 . . 6 . . . . Watcher 18 | . 2 5 2 . . 2 1 1 . 3 . . 2 Swarmer 27 | . 6 9 3 . . . 1 . . . . . 8 Cutter 2 | . . . . . . . . . . . . . 2 Grunt 44 | . 7 17 13 3 . . 3 . . 1 . . . Brawler 1 | . . . 1 . . . . . . . . . . Duelist 2 | . . 1 1 . . . . . . . . . . Sentry 20 | . . 10 8 1 . . 1 . . . . . . Best Kill Streak 9 | 2 3 7 7 2 . 2 2 1 5 3 . . 9 Combat Bots Only 8 | . 3 5 7 2 . . 2 . . 1 . . 8 Max Kills in Single Turn 4 | 1 2 3 3 1 . 1 1 1 1 1 . . 4 Gunslinging 1 | . 1 1 . . . . . . . . . . . Exploded 4 | . . 3 3 . . . . . . . . . 4 Melee 1 | . . . . . . . 1 . . 1 . . . Uniques/NPCs Destroyed . | . . . . . . . . . . . . . . Combat | -11 -10 -9 -9 -9 -9 -6 -6 -6 -6 -6 -5 -5 -5 -------- Run | Yrd Mat Mat Sto Rec Scr Fac Ext Cet Arc Hub Fac Was Fac Hostile Shots Fired 600 | . 54 135 97 7 . 56 94 11 . 12 . . 134 Missed 219 | . 12 29 24 1 . 39 46 8 . 5 . . 55 Hits 381 | . 42 106 73 6 . 17 48 3 . 7 . . 79 Melee 16 | . . . 2 . . . . . . . . . 14 Projectile 365 | . 42 106 71 6 . 17 48 3 . 7 . . 65 AOE 4 | . . . . . . . . . . . . . 4 Critical Strikes 14 | . . 3 1 . . . . . . . . . 10 Damage Taken 5813 | . 481 1267 1046 68 . 210 384 50 10 75 . . 2222 Core 1510 | . 97 101 101 . . 39 108 13 10 36 . . 1005 Absorbed by Shields 78 | . . . . . . . 53 25 . . . . . Regen/Repaired (Parts) 155 | . . . 119 . . 29 . . . . . . 7 Core Remaining (%) 71 | 100 61 . . . 49 . . . . 75 . . . Volleys Fired 350 | 5 60 130 115 8 . . 10 8 . . . . 14 Largest 2 | 2 2 2 2 2 . . 1 1 . . . . 1 Hottest 46 | 40 40 46 46 46 . . 43 43 . . . . 43 Shots Fired 663 | 10 120 258 227 16 . . 10 8 . . . . 14 Gun 626 | 10 120 256 224 16 . . . . . . . . . Cannon . | . . . . . . . . . . . . . . Launcher 37 | . . 2 3 . . . 10 8 . . . . 14 Special . | . . . . . . . . . . . . . . Kinetic 626 | 10 120 256 224 16 . . . . . . . . . Thermal . | . . . . . . . . . . . . . . Explosive 37 | . . 2 3 . . . 10 8 . . . . 14 Electromagnetic . | . . . . . . . . . . . . . . Robot Hit Streak 31 | 7 14 26 31 13 . . 15 2 . . . . 1 Robot Miss Streak 9 | . 9 4 3 2 . . 1 1 . . . . 2 Penetration Max . | . . . . . . . . . . . . . . Secondary Targets 8 | . 2 4 1 1 . . . . . . . . . Max Gunslinging Chain 1 | . 1 1 1 1 . . . . . . . . . Shots Hit Robots 529 | 7 70 191 176 13 . 14 22 1 9 6 . . 20 Core Hits 252 | 4 30 80 59 7 . 8 17 13 4 6 . . 24 Critical Kills 1 | . . . 1 . . . . . . . . . . Critical Parts Destroyed 2 | 1 . 1 . . . . . . . . . . . Critical Strikes 3 | 1 . 1 1 . . . . . . . . . . Destroy 3 | 1 . 1 1 . . . . . . . . . . Melee Attacks 213 | . . . 9 . . 92 24 . 10 25 . . 53 Impact 9 | . . . 9 . . . . . . . . . . Slashing 204 | . . . . . . 92 24 . 10 25 . . 53 Piercing . | . . . . . . . . . . . . . . Sneak Attacks 30 | . . . 1 . . 7 3 . 6 3 . . 10 Combat Hostiles 2 | . . . . . . . 2 . . . . . . Follow-up Attacks . | . . . . . . . . . . . . . . Damage Inflicted 14606 | 107 940 3206 3345 314 . 972 1491 485 841 465 . . 2440 Guns 6966 | 107 940 3022 2681 216 . . . . . . . . . Cannons . | . . . . . . . . . . . . . . Explosions 2842 | . . 177 568 . . . 484 485 . . . . 1128 Melee 4681 | . . . 96 . . 972 1007 . 841 465 . . 1300 Ramming 117 | . . 7 . 98 . . . . . . . . 12 Kinetic 6966 | 107 940 3022 2681 216 . . . . . . . . . Thermal . | . . . . . . . . . . . . . . Explosive 2842 | . . 177 568 . . . 484 485 . . . . 1128 Electromagnetic . | . . . . . . . . . . . . . . Impact 96 | . . . 96 . . . . . . . . . . Slashing 4585 | . . . . . . 972 1007 . 841 465 . . 1300 Piercing . | . . . . . . . . . . . . . . Highest Corruption 38 | . . . . . . . . . . . . 9 38 Average Corruption 17 | . . . . . . . . . . . . 9 18 Corruption Purged . | . . . . . . . . . . . . . . Corruption Blocked . | . . . . . . . . . . . . . . Effects 52 | . . . . . . . . . . . . 1 51 Message Errors 6 | . . . . . . . . . . . . . 6 Matter Fused 14 | . . . . . . . . . . . . 1 13 Heat Flow Errors 6 | . . . . . . . . . . . . . 6 Energy Discharges 1 | . . . . . . . . . . . . . 1 Parts Rejected 2 | . . . . . . . . . . . . . 2 Data Loss (minor) 7 | . . . . . . . . . . . . . 7 Data Loss (major) 3 | . . . . . . . . . . . . . 3 Alerts 2 | . . . . . . . . . . . . . 2 Misdirections 11 | . . . . . . . . . . . . . 11 Overload Shots . | . . . . . . . . . . . . . . Overflow Damage 917 | . . . 20 . . 165 165 . 211 . . . 356 Projectiles . | . . . . . . . . . . . . . . Explosions 53 | . . . 20 . . . 21 . . . . . 12 Melee 864 | . . . . . . 165 144 . 211 . . . 344 Knockbacks 3 | . . . . 3 . . . . . . . . . Impact 3 | . . . . 3 . . . . . . . . . Kinetic . | . . . . . . . . . . . . . . Secondary . | . . . . . . . . . . . . . . Self-Inflicted Damage 208 | . . . . . . . 55 . . . . . 153 Shots 4 | . . . . . . . 1 . . . . . 3 Rammed 14 | . . 1 1 10 . . . . . . . . 2 Targets Rammed 16 | . . 1 1 12 . . . . . . . . 2 Kicked . | . . . . . . . . . . . . . . Crushed 2 | . . . . 2 . . . . . . . . . Highest Temperature 284 | . 5 284 30 5 . 248 64 72 34 40 . . 217 Average Temperature 53 | . 2 29 8 3 . 69 18 25 12 13 . . 94 Received Heat Transfer 1308 | . 213 498 339 36 . 30 84 . . 30 . . 78 Effects 3 | . . 1 . . . 2 . . . . . . . Energy Bleed 2 | . . 1 . . . 1 . . . . . . . Interference 1 | . . . . . . 1 . . . . . . . Siege Activations . | . . . . . . . . . . . . . . Martial Activations . | . . . . . . . . . . . . . . Shielding Activations . | . . . . . . . . . . . . . . Robots Disrupted . | . . . . . . . . . . . . . . Combat Hostiles . | . . . . . . . . . . . . . . Robots Corrupted . | . . . . . . . . . . . . . . Combat Hostiles . | . . . . . . . . . . . . . . Parts Fried . | . . . . . . . . . . . . . . Impact Corruptions . | . . . . . . . . . . . . . . Robots Melted . | . . . . . . . . . . . . . . Combat Hostiles . | . . . . . . . . . . . . . . Parts Melted . | . . . . . . . . . . . . . . Heat Transferred . | . . . . . . . . . . . . . . Parts Sabotaged . | . . . . . . . . . . . . . . Parts Stolen . | . . . . . . . . . . . . . . Parts Stripped . | . . . . . . . . . . . . . . Power Chain Reactions . | . . . . . . . . . . . . . . Alert | -11 -10 -9 -9 -9 -9 -6 -6 -6 -6 -6 -5 -5 -5 ------- Run | Yrd Mat Mat Sto Rec Scr Fac Ext Cet Arc Hub Fac Was Fac Maximum Alert Level 3 | . . 2 2 1 . 1 1 1 1 2 1 . 3 Low Security (%) 46 | 100 100 51 25 15 . 92 45 . 47 15 . 100 23 Level 1 44 | . . 30 66 84 . 7 54 99 52 30 100 . 55 Level 2 8 | . . 18 8 . . . . . . 54 . . 14 Level 3 . | . . . . . . . . . . . . . 7 Level 4 . | . . . . . . . . . . . . . . Level 5 . | . . . . . . . . . . . . . . High Security . | . . . . . . . . . . . . . . Max Security . | . . . . . . . . . . . . . . Peak Influence 819 | 10 93 558 610 332 . 244 347 318 231 473 229 76 819 Initial 232 | . . 36 232 232 . . 117 181 88 73 227 76 46 Average 212 | 1 36 203 285 245 . 107 220 265 179 361 223 72 327 Influence Increases 7401 | 20 412 1208 1054 457 . 865 774 267 233 700 2 . 1409 Destroy 0b10 Robot/C 2720 | . 260 740 540 160 . 80 380 100 80 180 . . 200 Destroy 0b10 Robot/NC 430 | 20 50 90 65 15 . 45 15 5 30 30 . . 65 Destroy Leader 572 | . 58 222 156 . . 20 42 10 . 38 . . 26 Allied During Kill 424 | . . . 28 27 . 22 71 77 107 92 . . . Successful Hack 403 | . 42 24 13 15 . 127 5 14 . . 2 . 161 Select Force Hacks 530 | . . 60 30 240 . . . . . 200 . . . Disable Machine 390 | . . 15 150 . . . 90 15 15 15 . . 90 Destroy Structure 552 | . 2 27 27 . . 76 66 46 1 25 . . 282 Partial Spotted 330 | . . . . . . 135 15 . . 75 . . 105 Lose Combat Pursuer 1050 | . . 30 45 . . 360 90 . . 45 . . 480 Influence Decreases 6582 | 20 325 743 1010 898 155 625 689 372 242 446 248 153 656 Entered New Map 1828 | . . 51 320 364 155 . 123 144 132 138 238 143 20 Time Decay 3855 | 20 325 652 660 534 . 426 356 198 50 198 10 10 416 Lost Part 330 | . . 40 30 . . 10 30 10 . 10 . . 200 Lost Ally 569 | . . . . . . 189 180 20 60 100 . . 20 Squads Dispatched 63 | . 3 5 6 . . 21 2 1 . 8 2 . 15 Investigation 38 | . 3 4 1 . . 13 1 1 . 6 2 . 7 Extermination 6 | . . . . . . 4 . . . . . . 2 Reinforcement 9 | . . 1 1 . . 3 1 . . . . . 3 Assault 5 | . . . 3 . . . . . . 2 . . . Garrison 5 | . . . 1 . . 1 . . . . . . 3 Intercept . | . . . . . . . . . . . . . . Searches Triggered . | . . . . . . . . . . . . . . Construction Impeded . | . . . . . . . . . . . . . . Haulers Reinforced . | . . . . . . . . . . . . . . Active Scanning Responses . | . . . . . . . . . . . . . . Cargo Convoy Interrupts . | . . . . . . . . . . . . . . Stealth | -11 -10 -9 -9 -9 -9 -6 -6 -6 -6 -6 -5 -5 -5 --------- Run | Yrd Mat Mat Sto Rec Scr Fac Ext Cet Arc Hub Fac Was Fac Distress Signals 12 | . . 2 . . . 1 1 . . 2 . . 6 Communications Jammed . | . . . . . . . . . . . . . . Distress Signals . | . . . . . . . . . . . . . . Times Spotted 251 | . 24 47 37 7 . 33 17 4 2 11 . 6 63 Peak Tracking Total 16 | . 4 3 8 2 . 7 5 4 1 4 . 6 16 Tactical Retreats 39 | . . 1 2 . . 14 2 . . 3 . . 17 Traps | -11 -10 -9 -9 -9 -9 -6 -6 -6 -6 -6 -5 -5 -5 ------- Run | Yrd Mat Mat Sto Rec Scr Fac Ext Cet Arc Hub Fac Was Fac Traps Triggered 6 | . 1 . . . . 1 1 . . . 1 . 2 Indirectly . | . . . . . . . . . . . . . . Trap Hack Attempts . | . . . . . . . . . . . . . . Triggered . | . . . . . . . . . . . . . . Disarmed . | . . . . . . . . . . . . . . Reprogrammed . | . . . . . . . . . . . . . . Reused . | . . . . . . . . . . . . . . Traps Extracted . | . . . . . . . . . . . . . . Installed . | . . . . . . . . . . . . . . Triggered . | . . . . . . . . . . . . . . Machines | -11 -10 -9 -9 -9 -9 -6 -6 -6 -6 -6 -5 -5 -5 ---------- Run | Yrd Mat Mat Sto Rec Scr Fac Ext Cet Arc Hub Fac Was Fac Machines Disabled 26 | . . 1 10 . . . 6 1 1 1 . . 6 Max in Single Turn 2 | . . 1 1 . . . 1 1 . 1 . . 2 Garrison Access 7 | . . . 1 . . 2 . . . 2 . . 2 Network Hub 4 | . . . . . . . . . . 4 . . . Machines Repaired . | . . . . . . . . . . . . . . Machines Dismantled 10 | . . . 4 . . . 5 1 . . . . . Machines Sabotaged 4 | . . . . . . . . . . 4 . . . Overloaded Fab Kills . | . . . . . . . . . . . . . . Hacking | -11 -10 -9 -9 -9 -9 -6 -6 -6 -6 -6 -5 -5 -5 --------- Run | Yrd Mat Mat Sto Rec Scr Fac Ext Cet Arc Hub Fac Was Fac Machines Accessed 114 | . 10 13 11 14 2 30 4 2 . 6 2 . 20 Terminals 68 | . 8 10 7 6 . 15 4 2 . 5 . . 11 Fabricators 5 | . . . . . . 3 . . . . 1 . 1 Repair Stations 5 | . . . 2 . . 2 . . . . . . 1 Recycling Units 23 | . 2 2 1 8 . 4 . . . . 1 . 5 Scanalyzers 3 | . . 1 . . . 2 . . . . . . . Garrison Access 8 | . . . 1 . . 4 . . . 1 . . 2 Total Hacks 353 | . 32 32 25 30 22 76 6 10 . 12 5 . 103 Successful 209 | . 15 22 16 21 22 47 3 4 . 6 4 . 49 Failed 144 | . 17 10 9 9 . 29 3 6 . 6 1 . 54 Catastrophic 19 | . 1 1 1 1 . 3 1 . . 1 . . 10 Database Lockouts . | . . . . . . . . . . . . . . Manual 220 | . 31 28 17 16 . 49 1 1 . 10 2 . 65 Terminals 232 | . 27 28 16 7 . 42 6 10 . 10 . . 86 Fabricators 11 | . . . . . . 5 . . . . 3 . 3 Repair Stations 15 | . . . 6 . . 6 . . . . . . 3 Recycling Units 49 | . 5 2 2 23 . 6 . . . . 2 . 9 Scanalyzers 10 | . . 2 . . . 8 . . . . . . . Garrison Access 14 | . . . 1 . . 9 . . . 2 . . 2 Terminal Hacks 57 | . 4 3 1 . 22 5 2 4 . . . . 16 Record 28 | . . . . . 21 . . 4 . . . . 3 Part Schematic 2 | . . . . . . . . . . . . . 2 Robot Analysis 6 | . 3 1 . . . 2 . . . . . . . Open Door 4 | . . . 1 . 1 . 2 . . . . . . Level Access Points 2 | . . . . . . . . . . . . . 2 Branch Access Points 1 | . . . . . . . . . . . . . 1 Emergency Access Points 1 | . . . . . . . . . . . . . 1 Terminal Index 3 | . . . . . . 2 . . . . . . 1 Repair Station Index 1 | . . . . . . . . . . . . . 1 Scanalyzer Index 1 | . . . . . . . . . . . . . 1 Alert Level 1 | . . . . . . . . . . . . . 1 Locate Traps 2 | . . . . . . 1 . . . . . . 1 Hauler Manifests 2 | . . 1 . . . . . . . . . . 1 Registered Prototypes 3 | . 1 1 . . . . . . . . . . 1 Fabricator Hacks 11 | . . . . . . 5 . . . . 3 . 3 Network Status 3 | . . . . . . 1 . . . . 1 . 1 Load Schematic 4 | . . . . . . 2 . . . . 1 . 1 Build 4 | . . . . . . 2 . . . . 1 . 1 Repair Station Hacks 8 | . . . 4 . . 4 . . . . . . . Scan Component 4 | . . . 2 . . 2 . . . . . . . Repair 4 | . . . 2 . . 2 . . . . . . . Recycling Unit Hacks 8 | . . . 1 7 . . . . . . . . . Retrieve Components 8 | . . . 1 7 . . . . . . . . . Scanalyzer 7 | . . 2 . . . 5 . . . . . . . Insert Component 4 | . . 1 . . . 3 . . . . . . . Analyze 3 | . . 1 . . . 2 . . . . . . . Garrison Access Hacks 6 | . . . 1 . . 2 . . . 1 . . 2 Seal Access 6 | . . . 1 . . 2 . . . 1 . . 2 Unauthorized Hacks 111 | . 11 17 9 14 . 26 1 . . 5 1 . 27 Terminals 88 | . 11 15 8 6 . 21 1 . . 5 . . 21 Track 1 | . . . . . . . . . . . . . 1 Assimilate 7 | . . . . . . 3 1 . . . . . 3 Botnet 42 | . 6 10 5 1 . 9 . . . . . . 11 Operators 3 | . . . . . . 2 . . . . . . 1 Skim 30 | . 5 5 3 5 . 7 . . . . . . 5 Sabotage 5 | . . . . . . . . . . 5 . . . Fabricators . | . . . . . . . . . . . . . . Repair Stations 2 | . . . . . . 1 . . . . . . 1 Patch 2 | . . . . . . 1 . . . . . . 1 Recycling Units 21 | . . 2 1 8 . 4 . . . . 1 . 5 Tunnel 11 | . . 2 1 8 . . . . . . . . . Fedlink 10 | . . . . . . 4 . . . . 1 . 5 Scanalyzers . | . . . . . . . . . . . . . . Garrison Access . | . . . . . . . . . . . . . . Data Cores Recovered 2 | . 1 . . . . . 1 . . . . . . Used 1 | . 1 . . . . . . . . . . . . Hacking Detections 69 | . 7 9 4 8 . 22 2 1 . 2 1 . 13 Full Trace Events 17 | . 2 2 1 . . 8 1 1 . . 1 . 1 Feedback Events . | . . . . . . . . . . . . . . Feedback Blocked . | . . . . . . . . . . . . . . Robot Schematics Acquired . | . . . . . . . . . . . . . . Robots Built . | . . . . . . . . . . . . . . Authchips . | . . . . . . . . . . . . . . Time . | . . . . . . . . . . . . . . Total Robot Build Rating . | . . . . . . . . . . . . . . Part Schematics Acquired 5 | . . 1 . . . 2 . . . . . . 2 Parts Built 4 | . . . . . . 2 . . . . . . 2 Authchips . | . . . . . . . . . . . . . . Time 361 | . . . . . . 268 . . . . 62 . 31 Total Part Build Rating 12 | . . . . . . 8 . . . . . . 4 Parts Repaired 4 | . . . 2 . . 2 . . . . . . . Time 209 | . . . 102 . . 107 . . . . . . . Parts Recycled . | . . . . . . . . . . . . . . Recycled Matter . | . . . . . . . . . . . . . . Retrieved Matter . | . . . . . . . . . . . . . . Retrieved Components 37 | . . . 10 27 . . . . . . . . . Parts Scanalyzed 3 | . . 1 . . . 2 . . . . . . . Part Schematics Acquired 3 | . . 1 . . . 2 . . . . . . . Parts Damaged 1 | . . . . . . 1 . . . . . . . Bothacking | -11 -10 -9 -9 -9 -9 -6 -6 -6 -6 -6 -5 -5 -5 ------------ Run | Yrd Mat Mat Sto Rec Scr Fac Ext Cet Arc Hub Fac Was Fac Used RIF Installer . | . . . . . . . . . . . . . . Robots Hacked . | . . . . . . . . . . . . . . Non-combat . | . . . . . . . . . . . . . . Combat . | . . . . . . . . . . . . . . Robot Hacks Applied . | . . . . . . . . . . . . . . Relay Couplers Released 3 | . . . . . . . . . . 3 . . . Machine Destruction 3 | . . . . . . . . . . 3 . . . Fabnet Peak Effective % . | . . . . . . . . . . . . . . Robots Rewired 17 | . . . . 9 . . 8 . . . . . . Allies Hacked . | . . . . . . . . . . . . . . Hacks Repelled . | . . . . . . . . . . . . . . Allies | -11 -10 -9 -9 -9 -9 -6 -6 -6 -6 -6 -5 -5 -5 -------- Run | Yrd Mat Mat Sto Rec Scr Fac Ext Cet Arc Hub Fac Was Fac Total Allies 37 | . . . 2 9 1 2 16 5 . . . . 2 Largest Group 12 | . . . 2 11 12 11 7 11 11 5 . . 1 Highest-Rated Group 804 | . . . 62 199 237 199 355 804 794 230 . . 26 Highest-Rated Ally 159 | . . . 31 31 38 31 159 159 159 96 . . 26 Total Orders 9 | . . . . . 3 2 1 2 1 . . . . STAY 4 | . . . . . 2 . 1 1 . . . . . ROAM 3 | . . . . . . 2 . . 1 . . . . FOLLOW 2 | . . . . . 1 . . 1 . . . . . Ally Attacks 253 | . . . 17 11 . 52 76 32 22 43 . . . Total Damage 5295 | . . . 271 188 . 841 1795 536 824 840 . . . Kills 44 | . . . 1 5 . 5 15 5 4 9 . . . Allies Corrupted 3 | . . . . . . . . . . 2 . . 1 Allies Melted . | . . . . . . . . . . . . . . Intel | -11 -10 -9 -9 -9 -9 -6 -6 -6 -6 -6 -5 -5 -5 ------- Run | Yrd Mat Mat Sto Rec Scr Fac Ext Cet Arc Hub Fac Was Fac Active Infowar (turns) 6000 | . 651 1207 . . . 1428 803 419 118 405 34 29 906 Optics 3729 | . . . . . . 1425 803 419 118 405 34 29 496 Sensors 4045 | . . . . . . 1350 803 419 118 405 34 29 887 Terrain 1475 | . . . . . . 639 803 32 . . . . 1 Structural 590 | . . . . . . . . . . . . . 590 Seismic 1858 | . 651 1207 . . . . . . . . . . . Machine Analysis 4141 | . . . . . . 1427 803 419 118 405 34 29 906 Robot Analysis Total 6 | . 3 1 . . . 2 . . . . . . . Derelict Logs Recovered . | . . . . . . . . . . . . . . Drone Launches . | . . . . . . . . . . . . . . Drone Recoveries . | . . . . . . . . . . . . . . Exploration | -11 -10 -9 -9 -9 -9 -6 -6 -6 -6 -6 -5 -5 -5 ------------- Run | Yrd Mat Mat Sto Rec Scr Fac Ext Cet Arc Hub Fac Was Fac Turns Passed 16159 | 181 1179 2930 2490 1512 3606 1446 803 419 118 405 34 29 1007 Spaces Moved 13788 | 95 578 1430 1103 869 2213 3420 822 192 115 492 139 90 2230 Core 49 | 1 . . . . 6 . 10 . . . . . 32 Treads 5880 | 94 578 1430 1103 869 1801 5 . . . . . . . Legs . | . . . . . . . . . . . . . . Wheels . | . . . . . . . . . . . . . . Hover . | . . . . . . . . . . . . . . Flight 7859 | . . . . . 406 3415 812 192 115 492 139 90 2198 Fastest Speed 20 | 50 160 160 160 160 32 20 20 20 20 20 23 23 20 Average Speed 82 | 158 160 160 160 160 137 21 24 20 20 21 23 23 26 Slowest Speed 250 | 160 160 160 160 160 240 160 250 20 20 23 23 23 104 Overloaded Moves . | . . . . . . . . . . . . . . Propulsion Burnouts . | . . . . . . . . . . . . . . Robots Hopped 49 | . . . . . . 16 10 . . 6 . 2 15 Potential Cave-ins 18 | . . . . . . . 8 . . . . . 10 Cave-ins Triggered 1 | . . . . . . . . . . . . . 1 Exploration Rate (%) 70 | 5 98 98 95 99 90 72 59 83 89 33 5 90 65 Regions Visited 13 Branch Regions 7 Pre-discovered Areas 24 | . . 6 1 8 5 4 . . . . . . . Known Exits Taken 9 | . 1 . 1 1 1 1 1 1 1 1 . . . Unknown Exits Taken 2 | 1 . 1 . . . . . . . . . . . Scrap Searched 5 | . . . . . 5 . . . . . . . . Spaces Dug 259 | . . . 2 . . 77 21 . . 18 . . 141 Terrain Destroyed 684 | . . 18 34 . . 77 184 94 . 18 . . 259 Melee 125 | . . . 2 . . 77 1 . . 18 . . 27 Projectile . | . . . . . . . . . . . . . . AOE 559 | . . 18 32 . . . 183 94 . . . . 232 Terrain Rammed . | . . . . . . . . . . . . . . Walls Destroyed . | . . . . . . . . . . . . . . Machines Disabled . | . . . . . . . . . . . . . . Actions | -11 -10 -9 -9 -9 -9 -6 -6 -6 -6 -6 -5 -5 -5 --------- Run | Yrd Mat Mat Sto Rec Scr Fac Ext Cet Arc Hub Fac Was Fac Total 17431 | 112 718 1814 1518 968 2790 3977 1280 545 194 746 141 95 2533 Wait 2516 | . 54 173 194 22 489 409 331 335 67 234 . 8 200 Move 13685 | 94 577 1429 1102 868 2212 3388 805 191 114 481 139 86 2199 Hop 41 | . . . . . . 15 6 . . 4 . 1 15 Pick Up 97 | 7 10 20 13 . 34 8 1 . . . . . 4 Fast Attach 72 | 6 2 10 8 . 14 8 5 . 2 . . . 17 Attach 36 | . 1 2 1 . 6 14 2 . . . 1 . 9 Detach 9 | . . . . . 1 1 1 . . . 1 . 5 Swap 67 | . 3 22 23 . . 5 6 3 . 1 . . 4 Drop 128 | . 11 27 19 . 34 22 4 . 1 1 . . 9 Fire 350 | 5 60 130 115 8 . . 10 8 . . . . 14 Melee 213 | . . . 9 . . 92 24 . 10 25 . . 53 Ram 2 | . . . . . . . . . . . . . 2 Kick . | . . . . . . . . . . . . . . Crush 14 | . . 1 1 12 . . . . . . . . . Escape Stasis 34 | . . . . . . 15 18 . . . . . 1 Rewire 85 | . . . . 58 . . 27 . . . . . . Trap . | . . . . . . . . . . . . . . Miscellaneous 82 | . . . 33 . . . 40 8 . . . . 1 Route ------- -11/Scrapyard -10/Materials (discovered 5 exits: *Mat x3 / [*Min] / Sub) -9/Materials (discovered 6 exits: *Mat x3 / *Min x2 / *Sto) -9/Storage (discovered 2 exits: *Mat / *Rec) -9/Recycling (discovered 2 exits: [*Fac] / *Scr) -9/Scraptown (discovered 2 exits: *Fac x2) -6/Factory (discovered 7 exits: *Fac x4 / *Low / *Ext x2) -6/Extension (discovered 3 exits: *Fac x2 / *Cet) -6/Cetus -6/Archives (discovered 3 exits: *Fac / *Hub x2) -6/Hub_04(d) (discovered 2 exits: *Fac x2) -5/Factory (discovered 4 exits: Fac x2 / Upp x2) -5/Waste -5/Factory (discovered 6 exits: *Fac x4 / Upp x2) History --------- Turn | Location | Event 7 | -11/Scrapyard | Discovered new exit (range 15) 182 | -11/Scrapyard | Entered Materials 317 | -10/Materials | Build established: Mutant 409 | -10/Materials | Discovered new exit (range 13) 482 | -10/Materials | Discovered new exit (range 15) 648 | -10/Materials | Discovered new exit (range 15) 954 | -10/Materials | Learned Storage trap positions 1009 | -10/Materials | Identified exit to Subcaves 1009 | -10/Materials | Identified exit to Materials 1089 | -10/Materials | Loaded intel: 6 trap records 1182 | -10/Materials | Learned location of 2 exits from Materials 1361 | -10/Materials | Entered another Materials area 1361 | -9/Materials | Evolved 2 slots: Propulsion x1, Utility x1 1362 | -9/Materials | Identified exit to Materials 1362 | -9/Materials | Identified exit to Mines 1686 | -9/Materials | Discovered exit to Materials (range 7) 1935 | -9/Materials | Discovered new exit (range 14) 3669 | -9/Materials | Learned location of 2 exits from Materials 3744 | -9/Materials | Learned 2 Storage zone layouts 3863 | -9/Materials | Discovered exit to Mines (range 10) 3865 | -9/Materials | Learned location of Zion (-7) 4291 | -9/Materials | Entered Storage 4292 | -9/Storage | Identified exit to Recycling 4294 | -9/Storage | Loaded intel: 24 trap records 4550 | -9/Storage | Garrison activated, responded to threat 4813 | -9/Storage | Repaired Imp. Assault Rifle 4824 | -9/Storage | Repaired Imp. Assault Rifle 5274 | -9/Storage | Build established: Scavenger-Mutant 5591 | -9/Storage | Core integrity fell below 50% 5882 | -9/Storage | Build established: Mutant 6566 | -9/Storage | Met a pair of Derelict thieves 6644 | -9/Storage | Destroyed 7 combat bots 6691 | -9/Storage | First assault squad dispatched 6781 | -9/Storage | Entered Recycling 6781 | -9/Recycling | Accompanied by 2 allies 7438 | -9/Recycling | Discovered new exit (range 9) 7572 | -9/Recycling | Identified exit to Scraptown 7629 | -9/Recycling | Loaded intel: 8 recycling unit locations 7629 | -9/Recycling | Scanned before Scraplab entrance 7678 | -9/Recycling | Learned location of 2 exits from Materials 7840 | -9/Recycling | Learned Materials security intel 8056 | -9/Recycling | Build established: Commander-Mutant 8259 | -9/Recycling | Entered Scraplab 8293 | -9/Recycling | Entered Scraptown 8293 | -9/Scraptown | Accompanied by 11 allies 8684 | -9/Scraptown | Visited Red Mages 8719 | -9/Scraptown | Heard Great Nut preacher, LISTEN AND RECITE! 8732 | -9/Scraptown | Visited Artisan Demo Area 8839 | -9/Scraptown | Visited Spacefarers 8893 | -9/Scraptown | Visited Awakened 8946 | -9/Scraptown | Visited Assassins FH 9122 | -9/Scraptown | Visited Junk Repository 9178 | -9/Scraptown | Visited CPS Storage 9225 | -9/Scraptown | Discovered new exit (range 11) 9370 | -9/Scraptown | Visited UFD Registry 9370 | -9/Scraptown | Registered with UFD as "Gearsplitter" 9436 | -9/Scraptown | Visited Cartography Club 9478 | -9/Scraptown | Visited Curators Association 9532 | -9/Scraptown | Visited Scrap Suit Storage 9561 | -9/Scraptown | Visited Derelict Rescue Squad 9606 | -9/Scraptown | Visited Scrapoid Pod Storage 9630 | -9/Scraptown | Visited DA-N13 Charitable Foundation 9636 | -9/Scraptown | Found DCF Scrap (30 items) 9679 | -9/Scraptown | Visited Sword Containment 9737 | -9/Scraptown | Visited Scrapoid Research Area 9766 | -9/Scraptown | Visited Botcube Research 10225 | -9/Scraptown | Learned location of Storage (-9) 10225 | -9/Scraptown | Learned 16 Materials zone layouts 10225 | -9/Scraptown | Learned location of Upper Caves (-4) 10225 | -9/Scraptown | Learned 12 Factory zone layouts 10225 | -9/Scraptown | Learned 16 Factory zone layouts 10225 | -9/Scraptown | Learned 4 Access zone layouts 10225 | -9/Scraptown | Learned 8 Upper Caves zone layouts 10225 | -9/Scraptown | Learned 20 Upper Caves zone layouts 10225 | -9/Scraptown | Learned 24 Proximity Caves zone layouts 10225 | -9/Scraptown | Learned location of 2 exits from Factory 10225 | -9/Scraptown | Learned location of 3 exits from Lower Caves 10225 | -9/Scraptown | Learned location of 2 exits from Proximity Caves 10225 | -9/Scraptown | Identified exit to Factory 10225 | -9/Scraptown | Learned Research emergency access door positions 10242 | -9/Scraptown | Found Botcube 10329 | -9/Scraptown | Botcube activated 10347 | -9/Scraptown | Botcube completed mutation into wheeled form, armed with 2 guns. 11105 | -9/Scraptown | Visited Research Penetration Think Tank 11215 | -9/Scraptown | Found Surveybot 17 Chip 11315 | -9/Scraptown | Found DRS Beacon 11793 | -9/Scraptown | Met Optimus 11793 | -9/Scraptown | Accepted into 0bPrime 11899 | -9/Scraptown | Entered Factory 11899 | -6/Factory | Accompanied by 11 allies 11899 | -6/Factory | Evolved 6 slots: Propulsion x3, Utility x3 11900 | -6/Factory | Identified exit to Factory 11901 | -6/Factory | Identified exit to Extension 11902 | -6/Factory | Identified exit to Lower Caves 12045 | -6/Factory | Discovered exit to Extension (range 11) 12170 | -6/Factory | Garrison activated, responded to threat 12280 | -6/Factory | Loaded intel: 8 recycling unit locations 12353 | -6/Factory | Learned location of Protoforge (-3) 12367 | -6/Factory | Build established: Scout 12501 | -6/Factory | Discovered exit to Factory (range 21) 12514 | -6/Factory | Spotted B-75 Beast 12702 | -6/Factory | Repaired Broken Imp. Cesium-ion Thruster 12817 | -6/Factory | Learned location of 2 exits from Factory 12853 | -6/Factory | Fabricated Imp. Cesium-ion Thruster? 12879 | -6/Factory | Learned Hub_04(d) stockpile data 12897 | -6/Factory | Learned Extension emergency access door positions 12925 | -6/Factory | Learned location of 2 exits from Archives 12939 | -6/Factory | Fabricated Imp. Cesium-ion Thruster? 12940 | -6/Factory | Repaired Imp. Sensor Array 12963 | -6/Factory | Learned location of 2 exits from Archives 13345 | -6/Factory | Entered Extension 13366 | -6/Extension | Rescued a captive Derelict 13511 | -6/Extension | Rescued a captive Derelict 13512 | -6/Extension | Rescued a captive Derelict 13618 | -6/Extension | Rescued A7 13679 | -6/Extension | Spotted B-75 Beast 13837 | -6/Extension | Rescued a captive Derelict 13864 | -6/Extension | Rescued a captive Derelict 13865 | -6/Extension | Rescued a captive Derelict 13946 | -6/Extension | Build established: Scavenger-Scout 14026 | -6/Extension | Rescued a captive Derelict 14098 | -6/Extension | Rescued a captive Derelict 14107 | -6/Extension | Discovered new exit (range 6) 14124 | -6/Extension | Identified exit to Cetus 14148 | -6/Extension | Entered Cetus 14148 | -6/Cetus | Accompanied by 7 allies (A7) 14152 | -6/Cetus | Spotted Cetus Guard 14152 | -6/Cetus | Spotted Cetus Guard 14152 | -6/Cetus | Spotted Cetus Guard 14153 | -6/Cetus | Acquired a Cetus Manufacturing Module code from A7 14158 | -6/Cetus | Spotted Cetus Guard 14160 | -6/Cetus | Allies destroyed Cetus Guard 14160 | -6/Cetus | Allies destroyed Cetus Guard 14166 | -6/Cetus | Allies destroyed Cetus Guard 14182 | -6/Cetus | Allies destroyed Cetus Guard 14190 | -6/Cetus | Started Cetus Manufacturing Module 14215 | -6/Cetus | Manufactured an Enhanced Grunt 14240 | -6/Cetus | Manufactured an Enhanced Grunt 14265 | -6/Cetus | Manufactured an Enhanced Grunt 14290 | -6/Cetus | Manufactured an Enhanced Grunt 14315 | -6/Cetus | Manufactured an Enhanced Grunt 14380 | -6/Cetus | Escorted A7 to Cetus Mainframe 14519 | -6/Cetus | Discovered new exit (range 22) 14523 | -6/Cetus | Identified exit to Archives 14567 | -6/Cetus | Entered Archives 14567 | -6/Archives | Accompanied by 11 allies (A7) 14568 | -6/Archives | Identified exit to Hub_04(d) 14572 | -6/Archives | Received a hacking code to weaken MAIN.C 14584 | -6/Archives | Build established: Commander-Scout 14608 | -6/Archives | Unable to access archive contents 14629 | -6/Archives | Lost 3 allies 14643 | -6/Archives | Found Prototype Device 14643 | -6/Archives | Identified Exp. Thermal Shield 14685 | -6/Archives | Entered Hub_04(d) 14685 | -6/Hub_04(d) | Accompanied by 5 allies 14692 | -6/Hub_04(d) | Discovered exit to Factory (range 22) 14758 | -6/Hub_04(d) | Network Hub disabled 14782 | -6/Hub_04(d) | Network Hub disabled 14796 | -6/Hub_04(d) | Lost 3 allies 14798 | -6/Hub_04(d) | Discovered exit to Factory (range 19) 14799 | -6/Hub_04(d) | Network Hub disabled 14894 | -6/Hub_04(d) | Build established: Scavenger-Scout 15078 | -6/Hub_04(d) | Network Hub disabled 15090 | -6/Hub_04(d) | Entered Factory 15090 | -5/Factory | Evolved 2 slots: Utility x2 15091 | -5/Factory | Identified exit to Upper Caves 15092 | -5/Factory | Identified exit to Factory 15119 | -5/Factory | Loaded intel: 8 recycling unit locations 15124 | -5/Factory | Sucked down chute 15124 | -5/Factory | Entered Waste 15133 | -5/Waste | Spotted C-40 Crusher 15136 | -5/Waste | Spotted C-40 Crusher 15136 | -5/Waste | Spotted C-40 Crusher 15139 | -5/Waste | EMP discharged 15141 | -5/Waste | Spotted C-40 Crusher 15143 | -5/Waste | Spotted C-40 Crusher 15145 | -5/Waste | Spotted C-40 Crusher 15145 | -5/Waste | Discovered new exit (range 14) 15153 | -5/Waste | Identified exit to Factory 15153 | -5/Waste | Entered Factory 15236 | -5/Factory | System corruption reached 10% 15279 | -5/Factory | Loaded intel: 8 recycling unit locations 15312 | -5/Factory | Fabricated VTOL Module? 15473 | -5/Factory | Learned location of 1 exit from Extension 15532 | -5/Factory | Learned location of 1 exit from Testing 15579 | -5/Factory | Learned location of 2 exits from Upper Caves 15614 | -5/Factory | Learned Research garrison access intel 15638 | -5/Factory | Learned location of 2 exits from Upper Caves 15649 | -5/Factory | Spotted B-75 Beast 15654 | -5/Factory | Learned location of 1 exit from Proximity Caves 15680 | -5/Factory | Lost 5 parts (1n3u1w) 15714 | -5/Factory | Learned location of 1 exit from Upper Caves 15879 | -5/Factory | Crushed by falling debris 15910 | -5/Factory | Lost 5 parts (1p4u) 15969 | -5/Factory | Lost 4 parts (3n1u) 15971 | -5/Factory | Destroyed 8 combat bots 16060 | -5/Factory | System corruption reached 30% 16079 | -5/Factory | Core integrity fell below 50% 16117 | -5/Factory | Lost 4 parts (1n1u2w) 16124 | -5/Factory | Core integrity fell below 20% 16160 | -5/Factory | Destroyed by H-71 Marshal with Heavy Mass Driver Last Messages --------------- 16094_ Acquired Nuclear Pulse Array. 16095_ The unstable cave ceiling collapses. 16096_ Penetrated by Slug. 16096_ Slug penetrates Nuclear Reactor. 16101_ Penetrated by Slug. 16103_ U-05 Engineer lays Concrete. 16104_ Slug penetrates K-01 Serf. 16104_ K-01 Serf destroyed. 16104_ Penetrated by Slug. 16105_ U-05 Engineer lays Concrete. 16107_ System corrupted: Matter fused (-10). 16110_ K-01 Serf cleans the Construction Platform. 16116_ K-01 Serf destroyed. 16116_ Acquired 21 matter. 16119_ Nuclear Pulse Array destroyed. 16123_ System corrupted: Heat flow error (+247). 16138_ System corrupted: Component data lost. 16140_ Nuclear Pulse Array destroyed. 16153_ System corrupted: Heat flow error (+163). Companion Sword: "Sadness..." Map ----- +----------------------------------------------------+ | ???????????????????????????????????? | | ???????????????????????????????????? | | ???????????????????????????????????? | | ???????????????????????????????????? | | ???????????????????????????????????? | | ???????????????????????????????????? | | ???????????????????????????????????? | | ???????????????????????????????????? | | ???????????????????????????????????? | | ???????????????????????????????????? | | ???????????????????????????????????? | | ???????????????????????????????????? | | ??????????????????????????????###### | | ??????????????????????????????###### | | ??????????????????????????????##= | | ??????????######??????????????## "" | | ?????????? #??????????????## "" | | ???????"""" ##########?????## "" | | ???????"""" # #?????## | | ???????"""" # #?????## "" | | ??????#"""" # #?????## "" | | ??????#"""" # #?????##= "" | | ??????#"""" # ! #?????## | | ???????"""" # #?????###### | | ????????? ?# #?????###### | | ???????####@#### #??????????# | | ???????# % # #??????????# | | ???????# ; #??????????# | | ???????# H + ############ | | ???????# # ############ | | ???????# # # | | ???????### # # | | ????????## # # """ """ | | ????????## # # """ """ | | ????????## # # """ """ | | ????????## # " | | ????????## ########## """ """ | | ????????## # # """ """ | | ????????## #! """# """ """ | | ????????## # """# | | ????????## # """# | | ????????## + # | | ????????## # """############ | | ????????## #! """############ | | ????????## # """##?????????? | | ########## # ##?????????? | | ########## "##########?????????? | | # # ###########?????????? | | # """ # # ?????????? | | #[ "G" # # ?????????? | +----------------------------------------------------+ Best States ------------- Heat Dissipation 67 Energy Generation 18 Energy Capacity 265 Matter Stores 300 Matter Capacity 300 Sight Range 22 Robot Scan Range 16 Terrain Scan Range 20 Terrain Scan Density 10 Armor Coverage 450 Evasion (%) 66 Recoil Reduction 3 Offensive Hacking 12 Defensive Hacking 22 Item Schematics ----------------- VTOL Module | -9/Materials | Scanalyzed Imp. System Shield | -6/Factory | Scanalyzed Imp. Cesium-ion Thruster | -6/Factory | Scanalyzed Lrn. Missile Launcher | -5/Factory | Hacked Cld. Cesium-ion Thruster | -5/Factory | Hacked Robot Schematics ------------------ None Fabricated ------------ Imp. Cesium-ion Thruster | x1 | -6/Factory Imp. Cesium-ion Thruster | x1 | -6/Factory VTOL Module | x2 | -5/Factory Repaired ---------- Imp. Assault Rifle | 55% | -9/Storage Imp. Assault Rifle | 60% | -9/Storage Imp. Cesium-ion Thruster | 99% | -6/Factory | Broken Imp. Sensor Array | 18% | -6/Factory Alien Tech Used ----------------- None Achievements -------------- 404 Main Advantage Challenges ------------ None Game ------ Seed IonicClaymoresDesublimator Manual? 0 Play Time 02:16:34 Cumulative 160.6 hours Start 2025.07.02 @ 02:45:02 End 2025.07.02 @ 05:14:43 Sessions 1 Manual Loads 0 Difficulty Rogue Special Mode None Game No. 150 Rogue 150 Adventurer 0 Explorer 0 Win Type - Total 9 Types 5/0/2/2/0/0/0/0/0/0 Lore% 68 Gallery% 64 Achievement% 61 Wizard Run 0 Options --------- Layout 1 ASCII 0 Keyboard 0 Movement Numpad Keybinds 0 Fullscreen 1 Font 32/SmallcapsGlow Map View 77x35 Zoom Use 0% Tactical HUD 1 Map Filters NONE Filters NONE Steam 1 RUN: 218d40b6-bb83-48f1-9f31-abc0026127fe